bitfinex/quotes_ETHUSD_20250914
["timestamp","ask_amount","ask_price","bid_price","bid_amount"]
[1757851335550,0.1072,4637.4,4637.3,0.20154326]
[1757851335847,0.4086,4637.4,4637.3,0.20154326]
[1757851336035,0.8821,4637.4,4637.3,0.20154326]
[1757851336353,5.76507579,4638.1,4637.3,0.20154326]
[1757851336354,2.62950089,4638.3,4637.4,2.15634077]
[1757851336526,0.4735,4638.3,4637.5,2.35787749]
[1757851336734,0.1072,4638.0,4637.6,2.35782461]
[1757851336940,0.1072,4638.0,4637.7,0.20154326]
[1757851337269,0.1072,4638.0,4637.8,0.20154326]
[1757851337434,0.1072,4638.0,4637.9,0.20154326]
[1757851339280,0.1072,4638.0,4637.9,0.50484326]
[1757851340957,0.1072,4638.0,4637.9,2.66099151]
[1757851344435,0.4193,4638.0,4637.9,0.20154326]
[1757851344636,1.3563,4638.0,4637.9,0.20154326]
[1757851344835,1.70773189,4638.0,4637.9,0.20154326]
[1757851345032,1.3563,4638.0,4637.9,0.20154326]
[1757851345739,1.3563,4638.0,4637.5,2.70154326]
[1757851345940,0.1072,4637.7,4637.5,2.70154326]
[1757851346269,0.7856,4637.6,4637.5,2.70154326]
[1757851346762,0.1072,4637.7,4637.5,2.70154326]
[1757851346963,0.1072,4637.7,4637.5,4.85785953]
[1757851347167,0.1072,4637.7,4637.5,2.70154326]
[1757851347467,0.1072,4637.7,4637.5,4.85787305]
[1757851348869,0.1072,4637.7,4637.5,2.70154326]
[1757851349266,0.3121,4637.6,4637.4,3.607]
[1757851349468,3.09333548,4637.5,4637.0,3.0]
[1757851349640,0.4193,4637.1,4636.6,3.607]
[1757851349842,0.4193,4637.1,4636.7,3.0]
[1757851349843,0.937,4637.0,4636.7,3.0]
[1757851350043,0.4735,4636.9,4636.7,3.0]
[1757851350568,0.4735,4636.9,4636.7,5.15670241]
[1757851350740,0.4635,4637.0,4636.7,5.15670241]
[1757851350942,0.1072,4637.1,4636.8,2.15664553]
[1757851351568,0.1072,4637.1,4636.7,3.0]
[1757851351569,0.3121,4636.9,4636.7,3.0]
[1757851351746,0.7856,4636.9,4636.7,5.15669899]
[1757851351966,0.3121,4636.9,4636.8,2.15665976]
[1757851352172,0.1072,4637.1,4636.8,2.15665976]
[1757851352367,0.5807,4637.1,4636.8,2.15665976]
[1757851352884,0.1072,4637.1,4636.7,3.0]
[1757851353064,0.3121,4636.8,4636.6,0.001]
[1757851353261,2.60442574,4636.8,4636.6,0.001]
[1757851353585,0.937,4636.7,4636.6,0.001]
[1757851353989,1.2491,4636.7,4636.6,0.001]
[1757851354306,3.40580627,4636.7,4636.6,0.001]
[1757851355618,7.01180627,4636.7,4636.6,0.001]
[1757851355888,7.94221345,4636.7,4636.6,0.001]
[1757851359588,7.94421345,4636.7,4636.6,0.001]
[1757851360058,4.33621345,4636.7,4636.6,0.001]
[1757851360500,3.608,4636.7,4636.6,0.001]
[1757851360658,4.3936,4636.7,4636.6,0.001]
[1757851360860,6.07680627,4636.7,4636.6,0.001]
[1757851361060,4.3936,4636.7,4636.6,0.001]
[1757851361394,3.9201,4636.7,4636.6,0.001]
[1757851361573,6.07780627,4636.7,4636.6,0.001]
[1757851361894,3.9211,4636.7,4636.6,0.001]
[1757851362695,3.609,4636.7,4636.6,0.001]
[1757851362986,3.608,4636.7,4636.6,0.001]
[1757851363168,3.9201,4636.7,4636.6,0.001]
[1757851363368,4.3936,4636.7,4636.6,0.001]
[1757851363672,4.48843968,4636.7,4636.6,0.001]
[1757851363868,6.64514595,4636.7,4636.6,0.001]
[1757851364072,7.42074595,4636.7,4636.6,0.001]
[1757851364266,7.89424595,4636.7,4636.6,0.001]
[1757851365274,5.73753968,4636.7,4636.6,0.001]
[1757851365479,7.89424595,4636.7,4636.6,0.001]
[1757851365967,6.95724595,4636.7,4636.6,0.001]
[1757851366888,7.39564595,4636.7,4636.6,0.001]
[1757851367300,6.95724595,4636.7,4636.6,0.001]
[1757851367701,0.88043968,4636.7,4636.6,0.001]
[1757851367905,5.76270627,4636.7,4636.6,0.001]
[1757851368812,6.05290627,4636.7,4636.6,0.001]
[1757851368995,6.49130627,4636.7,4636.6,0.001]
[1757851369199,6.98360627,4636.7,4636.6,0.001]
[1757851369623,2.15670627,4636.7,4636.6,0.001]
[1757851369794,3.606,4636.7,4636.6,0.001]
[1757851370499,3.605,4636.7,4636.6,0.001]
[1757851371247,5.76170627,4636.7,4636.6,0.001]
[1757851372047,8.0465714,4636.7,4636.6,0.001]
[1757851374852,7.5542714,4636.7,4636.6,0.001]
[1757851375039,7.1138714,4636.7,4636.6,0.001]
[1757851375243,6.8236714,4636.7,4636.6,0.001]
[1757851376456,8.0441714,4636.7,4636.6,0.001]
[1757851380269,8.16400442,4636.7,4636.6,0.001]
[1757851380740,8.0441714,4636.7,4636.6,0.001]
[1757851381346,8.16404354,4636.7,4636.6,0.001]
[1757851383659,0.002,4637.9,4636.6,0.7545]
[1757851383965,0.002,4637.9,4636.7,0.88726706]
[1757851383966,0.1072,4637.3,4636.7,0.88726706]
[1757851384170,0.1072,4637.3,4636.6,0.3949]
[1757851384171,0.1072,4637.3,4637.2,0.2867]
[1757851384366,3.7312,4637.3,4637.2,1.3541378]
[1757851385169,0.1072,4637.3,4637.2,1.1524]
[1757851385466,1.8142,4637.9,4637.8,2.15619474]
[1757851385664,1.8142,4637.9,4637.4,2.15638073]
[1757851385875,0.1092,4637.9,4637.8,0.2867]
[1757851386062,0.1092,4637.9,4637.8,6.30859474]
[1757851386242,0.002,4637.9,4637.8,6.30859474]
[1757851387169,0.002,4637.9,4637.8,6.51002562]
[1757851389281,0.002,4637.9,4637.8,6.50978462]
[1757851390665,0.002,4637.9,4637.8,7.38711037]
[1757851390865,0.002,4637.9,4637.8,7.49431037]
[1757851391785,0.002,4637.9,4637.8,7.09541037]
[1757851392151,0.002,4637.9,4637.8,7.09514292]
[1757851392352,0.002,4637.9,4637.8,7.49404292]
[1757851393399,0.002,4637.9,4637.8,8.28604292]
[1757851394293,0.002,4637.9,4637.8,11.90604292]
[1757851394680,0.002,4637.9,4637.8,11.50714292]
[1757851394886,0.002,4637.9,4637.8,11.90604292]
[1757851396393,0.002,4637.9,4637.8,11.04034292]
[1757851400994,0.002,4637.9,4637.8,11.88964292]
[1757851401186,0.002,4637.9,4637.8,11.04034292]
[1757851401800,0.002,4637.9,4637.8,10.24834292]
[1757851402513,0.2881,4637.9,4637.8,9.96164292]
[1757851403012,1.1879,4637.9,4637.8,6.82092243]
[1757851403217,1.1879,4637.9,4637.8,3.20092243]
[1757851407016,1.1879,4637.9,4637.8,0.20092243]
[1757851407823,0.7535,4637.9,4637.8,0.20092243]
[1757851408407,0.2881,4637.9,4637.8,0.20092243]
[1757851408820,0.7225,4637.9,4637.8,0.20092243]
[1757851409327,1.1879,4637.9,4637.8,0.20092243]
[1757851410020,0.2881,4637.9,4637.8,0.20092243]
[1757851410224,0.002,4637.9,4637.8,0.20092243]
[1757851411099,0.2881,4637.9,4637.8,0.20092243]
[1757851411730,0.7225,4637.9,4637.8,0.20092243]
[1757851412924,0.7225,4637.9,4637.8,0.20192243]
[1757851413930,1.1879,4637.9,4637.8,0.20192243]
[1757851414249,4.05076472,4637.9,4637.8,0.20192243]
[1757851414598,1.89461647,4637.9,4637.8,0.20192243]
[1757851414799,4.05076472,4637.9,4637.8,0.20192243]
[1757851415003,7.66176472,4637.9,4637.8,0.20192243]
[1757851415309,6.95504825,4637.9,4637.8,0.20192243]
[1757851417239,6.95504825,4637.9,4637.8,0.001]
[1757851417966,7.0752546,4637.9,4637.8,0.001]
[1757851423774,17.8872546,4637.9,4637.8,0.001]
[1757851423940,20.68743843,4637.9,4637.8,0.001]
[1757851424136,21.98043843,4637.9,4637.8,0.001]
[1757851425386,22.55620714,4637.9,4637.8,0.001]
[1757851426089,22.55720714,4637.9,4637.8,0.001]
[1757851426293,21.98143843,4637.9,4637.8,0.001]
[1757851426584,20.68843843,4637.9,4637.8,0.001]
[1757851426799,21.26420714,4637.9,4637.8,0.001]
[1757851427068,20.68843843,4637.9,4637.8,0.001]
[1757851427769,17.07643843,4637.9,4637.8,0.001]
[1757851427972,20.68843843,4637.9,4637.8,0.001]
[1757851428270,20.77476039,4637.9,4637.8,0.001]
[1757851429476,16.96270436,4637.9,4637.8,0.001]
[1757851429682,20.57370436,4637.9,4637.8,0.001]
[1757851432158,20.77355648,4637.9,4637.8,0.001]
[1757851432767,20.57370436,4637.9,4637.8,0.001]
[1757851433484,20.57270436,4637.9,4637.8,0.001]
[1757851433893,20.77228873,4637.9,4637.8,0.001]
[1757851434258,20.57241953,4637.9,4637.8,0.001]
[1757851434673,16.96241953,4637.9,4637.8,0.001]
[1757851434997,20.57141953,4637.9,4637.8,0.001]
[1757851436691,16.96241953,4637.9,4637.8,0.001]
[1757851436879,14.98451953,4637.9,4637.8,0.001]
[1757851437080,18.59251953,4637.9,4637.8,0.311]
[1757851437295,2.15638073,4637.4,4637.3,0.001]
[1757851437593,6.61557149,4637.4,4637.3,0.001]
[1757851437897,6.61557149,4637.4,4637.3,0.1432]
[1757851438997,6.61557149,4637.4,4637.3,0.001]
[1757851439166,7.36947149,4637.4,4637.3,0.001]
[1757851439495,7.83677149,4637.4,4637.3,0.001]
[1757851439867,7.36837149,4637.4,4637.3,0.001]
[1757851443683,8.29794706,4637.4,4637.3,0.001]
[1757851444576,12.29020898,4637.4,4637.3,0.001]
[1757851446301,12.86597769,4637.4,4637.3,0.001]
[1757851446501,12.95230394,4637.4,4637.3,0.001]
[1757851447407,12.37653523,4637.4,4637.3,0.001]
[1757851447786,19.39653523,4637.4,4637.3,0.001]
[1757851449376,18.92813523,4637.4,4637.3,0.001]
[1757851449571,14.35308212,4637.4,4637.3,0.1432]
[1757851449775,17.95808212,4637.4,4637.3,0.1432]
[1757851449999,17.95808212,4637.4,4637.3,1e-08]
[1757851450198,17.38033523,4637.4,4637.3,1e-08]
[1757851450392,2.15661325,4636.9,4636.8,0.4771]
[1757851450597,7.41661325,4636.9,4636.8,0.4771]
[1757851450800,7.53653477,4636.9,4636.8,0.4771]
[1757851452099,3.93153477,4636.9,4636.8,0.4771]
[1757851452297,7.53653477,4636.9,4636.8,0.4771]
[1757851452484,8.52591325,4636.9,4636.8,0.4771]
[1757851452684,8.98708882,4636.9,4636.8,0.4771]
[1757851453419,8.98708882,4636.9,4636.8,0.001]
[1757851454000,8.98608882,4636.9,4636.8,0.001]
[1757851454304,9.73888882,4636.9,4636.8,0.001]
[1757851454512,6.13488882,4636.9,4636.8,0.001]
[1757851454706,8.99221325,4636.9,4636.8,0.001]
[1757851454911,9.45338882,4636.9,4636.8,0.001]
[1757851455484,10.8388184,4636.9,4636.8,0.001]
[1757851456083,10.9251521,4636.9,4636.8,0.001]
[1757851459714,17.4767521,4636.9,4636.8,0.001]
[1757851460017,13.1199521,4636.9,4636.8,0.001]
[1757851460316,15.73457362,4636.9,4636.8,0.001]
[1757851461593,16.16447362,4636.9,4636.8,0.001]
[1757851461797,12.56047362,4636.9,4636.8,0.001]
[1757851462028,16.16447362,4636.9,4636.8,0.001]
[1757851462211,17.99657542,4636.9,4636.8,0.001]
[1757851462729,18.29497542,4636.9,4636.8,0.001]
[1757851462934,17.99557542,4636.9,4636.8,0.001]
[1757851464729,13.96267542,4636.9,4636.8,0.001]
[1757851464932,17.56467542,4636.9,4636.8,0.001]
[1757851466605,17.56458196,4636.9,4636.8,0.001]
[1757851466796,17.56358196,4636.9,4636.8,0.001]
[1757851467898,21.31598196,4636.9,4636.8,0.001]
[1757851468112,22.32371479,4636.9,4636.8,0.001]
[1757851472433,22.32471479,4636.9,4636.8,0.001]
[1757851473000,22.32371479,4636.9,4636.8,0.001]
[1757851474112,18.14488196,4636.9,4636.8,0.001]
[1757851474328,21.74588196,4636.9,4636.8,0.001]
[1757851476408,22.53788196,4636.9,4636.8,0.001]
[1757851477616,22.33730276,4636.9,4636.8,0.001]
[1757851477940,22.53793239,4636.9,4636.8,0.001]
[1757851478515,22.08493239,4636.9,4636.8,0.001]
[1757851478726,22.53793239,4636.9,4636.8,0.001]
[1757851486149,23.30088644,4636.9,4636.8,0.001]
[1757851487167,22.53793239,4636.9,4636.8,0.001]
[1757851489325,22.53791891,4636.9,4636.8,0.001]
[1757851489747,2.15689234,4636.3,4636.2,1e-08]
[1757851489947,6.09350309,4636.3,4636.2,1e-08]
[1757851490243,15.32731924,4636.3,4636.2,1e-08]
[1757851490444,15.78849481,4636.3,4636.2,1e-08]
[1757851491051,15.87484453,4636.3,4636.2,1e-08]
[1757851491749,12.27384453,4636.3,4636.2,1e-08]
[1757851491942,15.40284453,4636.3,4636.2,1e-08]
[1757851492343,15.11334453,4636.3,4636.2,1e-08]
[1757851492539,14.65364453,4636.3,4636.2,1e-08]
[1757851493055,14.65360409,4636.3,4636.2,1e-08]
[1757851493653,15.11750409,4636.3,4636.2,1e-08]
[1757851495051,15.11750614,4636.3,4636.2,1e-08]
[1757851495230,14.96390616,4636.3,4636.2,1e-08]
[1757851495555,15.42780616,4636.3,4636.2,1e-08]
[1757851495932,15.11750616,4636.3,4636.2,1e-08]
[1757851496829,15.42780616,4636.3,4636.2,1e-08]
[1757851497031,15.87800616,4636.3,4636.2,1e-08]
[1757851497439,14.65360616,4636.3,4636.2,1e-08]
[1757851498355,15.11750616,4636.3,4636.2,1e-08]
[1757851498562,15.87800616,4636.3,4636.2,1e-08]
[1757851500256,13.86160616,4636.3,4636.2,1e-08]
[1757851500662,13.86285382,4636.3,4636.2,1e-08]
[1757851500861,13.86285382,4636.3,4636.2,0.46630001]
[1757851500862,10.04616459,4636.3,4636.2,0.46630001]
[1757851501158,13.64716459,4636.3,4636.2,1e-08]
[1757851502239,13.95746459,4636.3,4636.2,1e-08]
[1757851502439,14.42136459,4636.3,4636.2,1e-08]
[1757851502657,14.87156459,4636.3,4636.2,1e-08]
[1757851502864,14.68548386,4636.3,4636.2,1e-08]
[1757851503043,14.99578386,4636.3,4636.2,1e-08]
[1757851503247,14.68597543,4636.3,4636.2,1e-08]
[1757851503773,15.14987543,4636.3,4636.2,1e-08]
[1757851504534,11.54887543,4636.3,4636.2,1e-08]
[1757851504735,13.64765616,4636.3,4636.2,1e-08]
[1757851506267,15.30365616,4636.3,4636.2,1e-08]
[1757851508272,15.76755616,4636.3,4636.2,1e-08]
[1757851508860,15.30365616,4636.3,4636.2,1e-08]
[1757851509499,15.76755616,4636.3,4636.2,1e-08]
[1757851509651,17.61779708,4636.3,4636.2,1e-08]
[1757851510550,17.15389708,4636.3,4636.2,1e-08]
[1757851511188,15.30365616,4636.3,4636.2,0.46630001]
[1757851511576,15.30365616,4636.3,4636.2,1e-08]
[1757851512357,11.70265616,4636.3,4636.2,1e-08]
[1757851512581,11.70265616,4636.3,4636.2,0.46630001]
[1757851512769,15.10307838,4636.3,4636.2,0.46630001]
[1757851514485,14.64067861,4636.3,4636.2,0.46630001]
[1757851515858,14.64067861,4636.3,4636.2,1e-08]
[1757851516062,15.10309658,4636.3,4636.2,1e-08]
[1757851516287,15.10308813,4636.3,4636.2,1e-08]
[1757851516564,15.10306226,4636.3,4636.2,1e-08]
[1757851519662,14.64067861,4636.3,4636.2,1e-08]
[1757851520177,15.10286324,4636.3,4636.2,1e-08]
[1757851520781,18.32197768,4636.3,4636.2,1e-08]
[1757851521396,18.32397768,4636.3,4636.2,1e-08]
[1757851521992,16.87629197,4636.3,4636.2,1e-08]
[1757851522197,15.30543716,4636.3,4636.2,1e-08]
[1757851522796,16.06663716,4636.3,4636.2,1e-08]
[1757851523435,16.55253716,4636.3,4636.2,1e-08]
[1757851525209,16.5525388,4636.3,4636.2,1e-08]
[1757851526122,15.3054388,4636.3,4636.2,1e-08]
[1757851526324,15.3044388,4636.3,4636.2,1e-08]
[1757851529730,11.50386324,4636.3,4636.2,1e-08]
[1757851529891,15.10386324,4636.3,4636.2,0.45660001]
[1757851530083,14.64167861,4636.3,4636.2,1e-08]
[1757851530916,14.64167861,4636.3,4636.2,0.45120001]
[1757851532186,11.04167861,4636.3,4636.2,0.45120001]
[1757851532392,10.92124206,4636.3,4636.2,0.45120001]
[1757851532606,14.52124206,4636.3,4636.2,0.45120001]
[1757851532806,14.43489234,4636.3,4636.2,0.45120001]
[1757851534025,12.278,4636.3,4636.2,0.45120001]
[1757851534528,1.658,4636.3,4636.2,0.45120001]
[1757851534727,5.258,4636.3,4636.2,0.45120001]
[1757851534932,1.658,4636.3,4636.2,2.86906588]
[1757851535299,5.258,4636.3,4636.2,2.86906588]
[1757851535952,5.258,4636.3,4636.2,0.71212701]
[1757851536164,3.602,4636.3,4636.2,2.86906588]
[1757851536946,0.002,4636.3,4636.2,2.86906588]
[1757851538376,0.002,4636.3,4636.2,5.97626588]
[1757851539265,3.59848935,4636.7,4636.3,2.15685424]
[1757851539558,3.59848935,4636.7,4636.4,1.04891813]
[1757851539932,3.59848935,4636.7,4636.5,0.4512]
[1757851540165,3.59848935,4636.7,4636.6,0.4512]
[1757851543970,3.59848935,4636.7,4636.4,2.75455464]
[1757851544132,3.59848935,4636.7,4636.5,0.65738816]
[1757851544470,3.599,4636.7,4636.5,0.65738816]
[1757851546161,0.002,4636.8,4636.5,0.65738816]
[1757851546364,0.002,4636.8,4636.6,0.49576752]
[1757851546761,0.002,4636.8,4636.7,2.63090627]
[1757851547064,0.002,4636.8,4636.7,6.96957206]
[1757851547374,0.002,4636.8,4636.7,10.56857206]
[1757851547847,0.002,4636.8,4636.7,11.11347206]
[1757851553278,0.002,4636.8,4636.7,41.11347206]
[1757851554343,0.002,4636.8,4636.7,41.11247206]
[1757851554974,0.002,4636.8,4636.7,6.72247206]
[1757851555178,0.002,4636.8,4636.7,9.84627206]
[1757851555362,0.002,4636.8,4636.7,10.32237206]
[1757851555676,0.002,4636.8,4636.7,11.11437206]
[1757851557274,0.002,4636.8,4636.7,11.22157206]
[1757851559681,0.002,4636.8,4636.7,9.95347206]
[1757851559863,1.1977,4636.8,4636.7,9.95347206]
[1757851560059,1.1977,4636.8,4636.7,6.95347206]
[1757851560259,1.1977,4636.8,4636.7,5.81057206]
[1757851569496,0.2985,4636.8,4636.7,5.81057206]
[1757851569704,0.002,4636.8,4636.7,5.81057206]
[1757851570000,0.4483,4636.8,4636.7,5.81057206]
[1757851570568,0.7448,4636.8,4636.7,5.81057206]
[1757851572372,0.002,4636.8,4636.7,5.81057206]
[1757851572715,0.002,4636.8,4636.7,6.60257206]
[1757851572873,0.002,4636.8,4636.7,7.72578233]
[1757851573770,0.002,4636.8,4636.7,7.24968233]
[1757851574780,0.002,4636.8,4636.7,7.72578233]
[1757851577875,0.002,4636.8,4636.7,7.24968233]
[1757851579306,0.002,4636.8,4636.7,7.72578233]
[1757851580178,0.002,4636.8,4636.7,7.07867206]
[1757851582688,0.002,4636.8,4636.7,6.60257206]
[1757851593031,0.463,4636.8,4636.7,6.60257206]
[1757851598650,0.002,4636.8,4636.7,6.60257206]
[1757851608272,0.7643,4636.8,4636.7,6.60257206]
[1757851609238,1.2459,4636.8,4636.7,6.60257206]
[1757851609471,1.2459,4636.8,4636.7,10.19857206]
[1757851610175,1.2459,4636.8,4636.7,2.81057206]
[1757851610396,1.2459,4636.8,4636.7,2.26390627]
[1757851610541,1.2459,4636.8,4636.7,6.05590627]
[1757851610876,1.2459,4636.8,4636.7,0.1072]
[1757851611040,1.2459,4636.8,4636.6,0.001]
[1757851611256,0.12459,4636.7,4636.6,0.001]
[1757851611790,1.36849,4636.7,4636.6,0.001]
[1757851613597,1.2439,4636.7,4636.6,0.001]
[1757851614950,1.2439,4636.7,4636.6,2.15775279]
[1757851616983,1.2439,4636.7,4636.6,0.001]
[1757851618073,1.2439,4636.7,4636.6,2.15775279]
[1757851618397,1.2439,4636.7,4636.6,0.001]
[1757851618764,1.2439,4636.7,4636.6,2.15775279]
[1757851619677,1.2439,4636.7,4636.6,0.001]
[1757851620590,1.2439,4636.7,4636.6,2.15775279]
[1757851622588,1.2439,4636.7,4636.6,0.001]
[1757851623489,1.2439,4636.7,4636.6,2.15775279]
[1757851624291,0.002,4636.8,4636.7,2.15670627]
[1757851624593,0.002,4636.8,4636.7,2.17827333]
[1757851624891,0.002,4636.8,4636.7,2.15670627]
[1757851625092,0.4512,4636.8,4636.7,2.15670627]
[1757851625480,0.4512,4636.8,4636.7,2.17827333]
[1757851625791,0.4512,4636.8,4636.7,3.02555754]
[1757851625992,0.4512,4636.8,4636.7,3.00399048]
[1757851627100,0.4512,4636.8,4636.7,6.02555754]
[1757851627395,0.4512,4636.8,4636.7,6.00399048]
[1757851628383,0.002,4636.8,4636.7,6.00399048]
[1757851630872,0.4512,4636.8,4636.7,6.00399048]
[1757851631311,0.7604,4636.8,4636.7,6.00399048]
[1757851631472,1.225,4636.8,4636.7,5.15670627]
[1757851632690,1.225,4636.8,4636.7,3.0]
[1757851633093,1.225,4636.8,4636.6,0.001]
[1757851634479,7.40670627,4636.7,4636.6,0.001]
[1757851634874,8.62970627,4636.7,4636.6,0.001]
[1757851635201,9.70854005,4636.7,4636.6,0.001]
[1757851638306,10.14670246,4636.7,4636.6,0.001]
[1757851639408,10.14870246,4636.7,4636.6,0.001]
[1757851640674,10.23502424,4636.7,4636.6,0.001]
[1757851644287,6.64002424,4636.7,4636.6,0.001]
[1757851644690,10.23602424,4636.7,4636.6,0.001]
[1757851645895,8.07931797,4636.7,4636.6,0.001]
[1757851646095,7.99299619,4636.7,4636.6,0.001]
[1757851646614,10.14970246,4636.7,4636.6,0.001]
[1757851646913,7.99299619,4636.7,4636.6,0.001]
[1757851647290,10.14970246,4636.7,4636.6,0.001]
[1757851648736,6.55370246,4636.7,4636.6,0.001]
[1757851649037,10.14970246,4636.7,4636.6,0.001]
[1757851650535,10.23602405,4636.7,4636.6,0.001]
[1757851653516,6.64002405,4636.7,4636.6,0.001]
[1757851654002,10.23602405,4636.7,4636.6,0.001]
[1757851654506,9.67810246,4636.7,4636.6,0.001]
[1757851655250,10.16420246,4636.7,4636.6,0.001]
[1757851660040,9.67810246,4636.7,4636.6,0.001]
[1757851660446,6.76999619,4636.7,4636.6,0.001]
[1757851660653,2.09516241,4636.7,4636.6,0.001]
[1757851660854,5.69116241,4636.7,4636.6,0.001]
[1757851661169,7.84786868,4636.7,4636.6,0.001]
[1757851661358,8.29006868,4636.7,4636.6,0.001]
[1757851661862,9.06506868,4636.7,4636.6,0.001]
[1757851662173,10.19606895,4636.7,4636.6,0.001]
[1757851663974,10.31647866,4636.7,4636.6,0.001]
[1757851664182,10.31647866,4636.7,4636.2,1e-08]
[1757851664183,2.15689234,4636.3,4636.2,1e-08]
[1757851664478,5.75189234,4636.3,4636.2,1e-08]
[1757851664645,7.95872423,4636.3,4636.2,1e-08]
[1757851665043,8.04505848,4636.3,4636.2,1e-08]
[1757851665365,8.24573792,4636.3,4636.2,1e-08]
[1757851665563,11.24573792,4636.3,4636.2,1e-08]
[1757851665738,11.70806731,4636.3,4636.2,1e-08]
[1757851669477,11.24573792,4636.3,4636.2,1e-08]
[1757851670272,18.26573792,4636.3,4636.2,1e-08]
[1757851674859,14.67073792,4636.3,4636.2,1e-08]
[1757851675055,18.26673792,4636.3,4636.2,1e-08]
[1757851678763,16.84885848,4636.3,4636.2,1e-08]
[1757851679085,13.25285848,4636.3,4636.2,1e-08]
[1757851679304,15.89330205,4636.3,4636.2,1e-08]
[1757851683618,15.89230205,4636.3,4636.2,1e-08]
[1757851685170,7.14040971,4636.3,4636.2,1e-08]
[1757851685407,10.615,4636.3,4636.2,0.45310001]
[1757851685707,10.615,4636.3,4636.2,0.65460825]
[1757851686094,10.615,4636.3,4636.2,0.45310001]
[1757851686308,1.656,4636.5,4636.2,0.45310001]
[1757851686632,1.656,4636.5,4636.4,2.15684582]
[1757851686837,0.002,4636.6,4636.4,0.71635148]
[1757851687032,0.002,4636.6,4636.5,2.17836729]
[1757851687191,0.002,4636.6,4636.5,2.63146729]
[1757851688328,0.002,4636.6,4636.5,2.6098993]
[1757851688824,0.002,4636.6,4636.5,5.6098993]
[1757851689138,0.002,4636.6,4636.5,6.72362361]
[1757851689630,0.002,4636.6,4636.5,6.80991242]
[1757851696729,0.002,4636.6,4636.5,7.60191242]
[1757851700348,0.002,4636.6,4636.5,7.51562361]
[1757851705339,0.002,4637.1,4637.0,5.94856674]
[1757851705540,0.002,4637.1,4637.0,10.35208701]
[1757851705740,0.002,4637.1,4637.0,10.92148701]
[1757851706367,0.002,4637.1,4637.0,6.86628701]
[1757851706574,1.2187,4637.1,4637.0,6.07428701]
[1757851707640,1.2187,4637.1,4637.0,9.66728701]
[1757851707935,1.2187,4637.1,4637.0,6.07428701]
[1757851714384,0.7431,4637.1,4637.0,6.07428701]
[1757851715753,1.2187,4637.1,4637.0,6.07428701]
[1757851715993,1.2187,4637.1,4637.0,6.27568983]
[1757851716754,1.2187,4637.1,4637.0,0.20140282]
[1757851725793,1.2187,4637.1,4637.0,0.20149997]
[1757851727797,4.8107,4637.1,4637.0,0.20149997]
[1757851729185,1.2187,4637.1,4637.0,0.20149997]
[1757851729493,4.8107,4637.1,4637.0,0.20149997]
[1757851735293,7.45941023,4637.1,4637.0,0.20149997]
[1757851737537,7.49291023,4637.1,4637.0,0.20149997]
[1757851738928,0.002,4637.1,4637.0,0.20149997]
[1757851739132,3.594,4637.1,4637.0,0.20149997]
[1757851740194,4.061,4637.1,4637.0,0.20149997]
[1757851740528,4.061,4637.1,4636.8,2.15664807]
[1757851740699,4.061,4637.1,4636.9,0.20160764]
[1757851740892,4.061,4637.1,4637.0,0.20160764]
[1757851741391,4.3613,4637.1,4637.0,0.20160764]
[1757851742790,4.3613,4637.1,4637.0,2.35817438]
[1757851742791,0.002,4637.1,4637.0,2.35817438]
[1757851742992,0.002,4637.1,4637.0,1.15398135]
[1757851743299,0.002,4637.1,4637.0,1.17554701]
[1757851743890,0.002,4637.1,4637.0,1.15398135]
[1757851744122,0.002,4637.1,4637.0,0.65490764]
[1757851744620,4.836,4637.1,4637.0,0.20160764]
[1757851744821,4.9432,4637.1,4637.0,0.20160764]
[1757851747144,7.09972023,4637.1,4637.0,0.20160764]
[1757851747350,4.9432,4637.1,4637.0,0.20160764]
[1757851748038,9.58567944,4637.1,4637.0,0.20160764]
[1757851748348,2.15661325,4636.9,4636.8,0.001]
[1757851748517,5.74761325,4636.9,4636.8,0.20284856]
[1757851748719,2.15675279,4636.6,4636.5,0.001]
[1757851749052,6.67445534,4636.6,4636.5,0.001]
[1757851749252,8.03704665,4636.6,4636.5,0.001]
[1757851749417,11.03704665,4636.6,4636.5,0.001]
[1757851749746,12.49221371,4636.6,4636.5,0.001]
[1757851750842,12.49167294,4636.6,4636.5,0.001]
[1757851752216,12.29120945,4636.6,4636.5,0.001]
[1757851753023,12.49145846,4636.6,4636.5,0.001]
[1757851753223,19.31120945,4636.6,4636.5,0.001]
[1757851753638,2.15707845,4635.9,4635.7,0.001]
[1757851753844,10.6197863,4635.9,4635.7,0.001]
[1757851754044,11.98206439,4635.9,4635.7,0.001]
[1757851754222,11.8617863,4635.9,4635.7,0.001]
[1757851754423,11.98181155,4635.9,4635.7,0.001]
[1757851754624,8.38981155,4635.9,4635.7,0.001]
[1757851754824,11.98181155,4635.9,4635.7,0.001]
[1757851755254,11.8617863,4635.9,4635.7,0.001]
[1757851756553,12.29989495,4635.9,4635.7,0.001]
[1757851761452,10.97789495,4635.9,4635.7,0.001]
[1757851761660,12.29989495,4635.9,4635.7,0.001]
[1757851764374,8.70789495,4635.9,4635.7,0.001]
[1757851764674,12.29989495,4635.9,4635.7,0.001]
[1757851765204,19.31989495,4635.9,4635.7,0.001]
[1757851771484,15.72789495,4635.9,4635.7,0.001]
[1757851771689,19.31989495,4635.9,4635.7,0.001]
[1757851772387,19.43993639,4635.9,4635.7,0.001]
[1757851773562,19.44000237,4635.9,4635.7,0.001]
[1757851774454,19.44000237,4635.9,4635.6,0.001]
[1757851774455,2.15721805,4635.6,4635.5,1e-08]
[1757851774706,15.76921805,4635.6,4635.5,1e-08]
[1757851774882,17.11180822,4635.6,4635.5,1e-08]
[1757851775085,17.54440822,4635.6,4635.5,1e-08]
[1757851776260,18.53698365,4635.6,4635.5,1e-08]